[Event "WYCC 2018 G18"]
[Site "Halkidiki"]
[Date "2018.10.24"]
[Round "6"]
[White "Naidoo, Rayna"]
[Black "Belluire, Beatrice"]
[Result "0-1"]
[ECO "A48"]
[WhiteElo "1236"]
[BlackElo "1931"]
[Annotator "NA"]
[PlyCount "120"]
[EventDate "2018.10.20"]
[EventType "swiss"]
[EventCountry "GRE"]
[SourceTitle "playchess.com"]
[Source "ChessBase"]
[SourceQuality "1"]
[TimeControl "40/5400+30:1800+30"]

1. d4 {[%emt 0:00:00]} Nf6 {[%emt 0:00:00]} 2. Nf3 {[%emt 0:00:00]} g6 {[%emt 0:00:21]} 3. Bf4 {[%emt 0:00:00]} Bg7 {[%emt 0:00:32]} 4. e3 {[%emt 0:00:00]} d6 {[%emt 0:00:11]} 5. Be2 {[%emt 0:00:03]} Nh5 {[%emt 0:02:38]} 6. Bg5 {[%emt 0:01:07]} h6 {[%emt 0:00:19]} 7. Bh4 {[%emt 0:00:31]} g5 {[%emt 0:00:34]} 8. Bg3 {[%emt 0:00:08]} Nd7 {[%emt 0:04:31]} 9. Nfd2 {[%emt 0:02:02]} Nxg3 {[%emt 0:00:23]} 10. hxg3 {[%emt 0:00:07]} c5 {[%emt 0:04:36]} 11. Nb3 {[%emt 0:03:13]} Qc7 {[%emt 0:02:09]} 12. N1d2 {[%emt 0:01:27]} b6 {[%emt 0:01:46]} 13. Bf3 {[%emt 0:07:54]} Bb7 {[%emt 0:01:31]} 14. c3 {[%emt 0:03:11]} Rc8 {[%emt 0:02:19]} 15. Bxb7 {[%emt 0:00:54]} Qxb7 {[%emt 0:00:13]} 16. Qf3 {[%emt 0:00:16]} Qa6 {[%emt 0:02:14]} 17. Qe2 {[%emt 0:07:05]} Qxe2+ {[%emt 0:07:25]} 18. Kxe2 {[%emt 0:00:08]} c4 {[%emt 0:00:05]} 19. Nc1 {[%emt 0:00:39]} O-O {[%emt 0:05:55]} 20. Kd1 {[%emt 0:04:30]} f5 {[%emt 0:06:06]} 21. Ne2 {[%emt 0:02:39]} d5 {[%emt 0:03:48]} 22. f4 {[%emt 0:02:07]} Nf6 {[%emt 0:04:11]} 23. Nf1 {[%emt 0:03:03]} b5 {[%emt 0:06:58]} 24. a3 {[%emt 0:01:22]} a5 {[%emt 0:00:21]} 25. Nh2 {[%emt 0:04:09]} Ne4 {[%emt 0:01:20]} 26. Rf1 {[%emt 0:00:51]} g4 {[%emt 0:00:34]} 27. Kc2 {[%emt 0:08:27]} Rc6 {[%emt 0:04:24]} 28. Rfb1 {[%emt 0:03:59]} Rb8 {[%emt 0:04:46]} 29. Nf1 {[%emt 0:02:07]} e6 {[%emt 0:06:47]} 30. Nd2 {[%emt 0:08:38]} Nd6 {[%emt 0:00:32]} 31. Nc1 {[%emt 0:05:27]} b4 {[%emt 0:02:13]} 32. axb4 {[%emt 0:02:31]} axb4 {[%emt 0:00:07]} 33. Ne2 {[%emt 0:01:23]} Bf8 {[%emt 0:04:02]} 34. Rh1 {[%emt 0:04:24]} Rcb6 {[%emt 0:00:42]} 35. Rhb1 {[%emt 0:00:11]} R8b7 {[%emt 0:02:21]} 36. Nf1 {[%emt 0:00:46]} Kf7 {[%emt 0:01:25]} 37. Nd2 {[%emt 0:00:38]} Kg6 {[%emt 0:00:21]} 38. Ng1 {[%emt 0:01:21]} h5 {[%emt 0:00:41]} 39. Ne2 {[%emt 0:00:10]} Be7 {[%emt 0:00:06]} 40. Rh1 {[%emt 0:00:00]} bxc3 {[%emt 0:00:00]} 41. bxc3 {[%emt 0:03:00]} Rb2+ {[%emt 0:01:53]} 42. Kd1 {[%emt 0:07:12]} Ne4 {[%emt 0:06:14]} 43. Nxe4 {[%emt 0:00:48]} fxe4 {[%emt 0:00:04]} 44. Ke1 {[%emt 0:02:03]} Rc2 {[%emt 0:03:34]} 45. Kf2 {[%emt 0:03:45]} Rbb2 {[%emt 0:00:17]} 46. Rhe1 {[%emt 0:00:42]} Rxc3 {[%emt 0:00:14]} 47. Rac1 {[%emt 0:06:01]} Rd3 {[%emt 0:02:57]} 48. Rb1 {[%emt 0:03:48]} Rdd2 {[%emt 0:01:32]} 49. Rxb2 {[%emt 0:00:49]} Rxb2 {[%emt 0:00:01]} 50. Kf1 {[%emt 0:00:36]} Bb4 {[%emt 0:00:11]} 51. Rd1 {[%emt 0:02:31]} c3 {[%emt 0:00:24]} 52. Rc1 {[%emt 0:07:34]} c2 {[%emt 0:00:10]} 53. Rxc2 {[%emt 0:00:47]} Rxc2 {[%emt 0:00:10]} 54. Kf2 {[%emt 0:01:00]} Rb2 {[%emt 0:00:23]} 55. Kf1 {[%emt 0:00:32]} Rb1+ {[%emt 0:00:05]} 56. Kf2 {[%emt 0:00:10]} Be1+ {[%emt 0:00:10]} 57. Kf1 {[%emt 0:00:26]} Bxg3+ {[%emt 0:00:05]} 58. Nc1 {[%emt 0:00:11]} Rxc1+ {[%emt 0:00:01]} 59. Ke2 {[%emt 0:00:12]} Rc2+ {[%emt 0:00:48]} 60. Kf1 {[%emt 0:00:21]} h4 {[%emt 0:00:09]} 0-1

[Event "WYCC 2018 G18"]
[Site "Halkidiki"]
[Date "2018.10.26"]
[Round "7"]
[White "Garcia Martin, Marta"]
[Black "Tarini Goyal"]
[Result "1-0"]
[ECO "B12"]
[WhiteElo "2329"]
[BlackElo "2026"]
[Annotator "NA"]
[PlyCount "81"]
[EventDate "2018.10.20"]
[EventType "swiss"]
[EventCountry "GRE"]
[SourceTitle "playchess.com"]
[Source "ChessBase"]
[SourceQuality "1"]
[TimeControl "40/5400+30:1800+30"]

1. e4 {[%emt 0:00:00]} c6 {[%emt 0:00:00]} 2. d4 {[%emt 0:00:00]} d5 {[%emt 0:00:00]} 3. e5 {[%emt 0:00:00]} Bf5 {[%emt 0:00:07]} 4. Nc3 {[%emt 0:00:45]} e6 {[%emt 0:00:55]} 5. g4 {[%emt 0:00:21]} Bg6 {[%emt 0:00:08]} 6. Nge2 {[%emt 0:00:12]} c5 7. h4 {[%emt 0:00:31]} h5 {[%emt 0:00:49]} 8. Nf4 {[%emt 0:00:19]} Bh7 {[%emt 0:00:29]} 9. g5 {[%emt 0:08:04]} Bf5 {[%emt 0:12:59]} 10. dxc5 {[%emt 0:45:10]} Nc6 11. Nxh5 {[%emt 0:01:51]} a6 {[%emt 0:22:38]} 12. Ng3 d4 {[%emt 0:02:17]} 13. Nxf5 {[%emt 0:13:19]} exf5 {[%emt 0:00:14]} 14. Ne2 {[%emt 0:00:03]} Qd5 {[%emt 0:06:11]} 15. Rh3 {[%emt 0:01:09]} O-O-O 16. f4 {[%emt 0:05:53]} Bxc5 {[%emt 0:10:03]} 17. a3 {[%emt 0:00:33]} Nge7 {[%emt 0:07:15]} 18. Qd3 {[%emt 0:01:05]} Qe6 {[%emt 0:12:18]} 19. Bd2 {[%emt 0:04:00]} Nd5 {[%emt 0:02:44]} 20. Qc4 {[%emt 0:00:59]} Ba7 {[%emt 0:05:14]} 21. O-O-O {[%emt 0:00:53]} Kb8 {[%emt 0:03:15]} 22. Qb3 {[%emt 0:01:02]} Rc8 {[%emt 0:04:47]} 23. Bg2 {[%emt 0:00:33]} Nce7 {[%emt 0:05:12]} 24. Be1 {[%emt 0:05:10]} Qc6 {[%emt 0:03:08]} 25. Nxd4 {[%emt 0:01:04]} Qc4 {[%emt 0:00:35]} 26. Bf2 {[%emt 0:06:56]} Qxb3 {[%emt 0:01:03]} 27. Rxb3 {[%emt 0:00:05]} g6 {[%emt 0:00:35]} 28. Nxf5 {[%emt 0:03:18]} gxf5 {[%emt 0:00:29]} 29. Bxa7+ {[%emt 0:00:05]} Kxa7 {[%emt 0:00:04]} 30. Bxd5 {[%emt 0:00:05]} Nxd5 {[%emt 0:00:08]} 31. Rxd5 {[%emt 0:00:02]} Rxh4 {[%emt 0:00:10]} 32. Rd7 {[%emt 0:01:29]} Rh1+ {[%emt 0:00:08]} 33. Kd2 {[%emt 0:00:26]} Rh2+ {[%emt 0:00:13]} 34. Kd3 {[%emt 0:00:14]} Rh3+ {[%emt 0:02:17]} 35. Kd4 {[%emt 0:00:05]} Rxb3 {[%emt 0:00:07]} 36. cxb3 {[%emt 0:00:03]} Rf8 {[%emt 0:00:31]} 37. e6 {[%emt 0:01:04]} fxe6 {[%emt 0:00:09]} 38. g6 {[%emt 0:00:08]} Rf6 {[%emt 0:00:45]} 39. Rg7 {[%emt 0:00:32]} Rf8 {[%emt 0:00:41]} 40. Ke5 {[%emt 0:00:00]} Rh8 {[%emt 0:00:00]} 41. Rh7 {[%emt 0:01:02]} 1-0

[Event "WYCC 2018 G18"]
[Site "Halkidiki"]
[Date "2018.10.26"]
[Round "7"]
[White "Sliwicka, Alicja"]
[Black "Stashis, Anna"]
[Result "1-0"]
[ECO "B01"]
[WhiteElo "2264"]
[BlackElo "1979"]
[Annotator "NA"]
[PlyCount "81"]
[EventDate "2018.10.20"]
[EventType "swiss"]
[EventCountry "GRE"]
[SourceTitle "playchess.com"]
[Source "ChessBase"]
[SourceQuality "1"]
[TimeControl "40/5400+30:1800+30"]

1. e4 {[%emt 0:00:00]} d5 {[%emt 0:00:00]} 2. exd5 {[%emt 0:00:00]} Qxd5 {[%emt 0:00:00]} 3. Nf3 {[%emt 0:00:00]} Nf6 {[%emt 0:00:17]} 4. d4 {[%emt 0:01:04]} Bg4 {[%emt 0:08:10]} 5. Be2 {[%emt 0:00:10]} e6 {[%emt 0:01:56]} 6. O-O {[%emt 0:07:15]} c6 {[%emt 0:07:23]} 7. c4 $16 {[%emt 0:01:58] LiveBook: 48 Games} Qd8 {[%emt 0:04:13]} 8. h3 {[%emt 0:04:18]} Bh5 {[%emt 0:05:55]} 9. Nc3 {[%emt 0:02:25]} Be7 {[%emt 0:11:15]} 10. Bf4 {[%emt 0:01:28]} O-O {[%emt 0:02:25]} 11. Qd2 {[%emt 0:01:10]} Bd6 {[%emt 0:16:30]} 12. Rfd1 {[%emt 0:07:35]} Qc7 {[%emt 0:04:32]} 13. Bg5 {[%emt 0:07:55]} Nbd7 {[%emt 0:04:11]} 14. d5 {[%emt 0:06:40]} exd5 {[%emt 0:02:36]} 15. cxd5 {[%emt 0:00:46]} Bb4 {[%emt 0:02:21]} 16. d6 {[%emt 0:07:49]} Qa5 {[%emt 0:04:38]} 17. Qc1 {[%emt 0:15:37]} Bxc3 {[%emt 0:06:38]} 18. bxc3 {[%emt 0:08:04]} Ne4 {[%emt 0:04:04]} 19. Bd2 {[%emt 0:01:05]} Qc5 {[%emt 0:01:36]} 20. Be3 {[%emt 0:04:08]} Qxc3 {[%emt 0:05:24]} 21. Qb1 {[%emt 0:00:16]} Nec5 {[%emt 0:02:36]} 22. Rc1 {[%emt 0:02:13]} Qa3 {[%emt 0:01:27]} 23. Bxc5 {[%emt 0:07:35]} Nxc5 {[%emt 0:00:22]} 24. Qf5 {[%emt 0:00:21]} Bxf3 {[%emt 0:00:30]} 25. Bxf3 {[%emt 0:00:03]} Ne6 {[%emt 0:00:24]} 26. Rd1 {[%emt 0:00:23]} Rad8 {[%emt 0:01:12]} 27. d7 {[%emt 0:00:58]} Qe7 {[%emt 0:01:29]} 28. Qd3 {[%emt 0:00:26]} Ng5 {[%emt 0:00:57]} 29. Bg4 {[%emt 0:01:32]} Qe4 {[%emt 0:00:25]} 30. Qb3 {[%emt 0:02:44]} b6 {[%emt 0:00:18]} 31. Rac1 {[%emt 0:01:10]} Ne6 {[%emt 0:00:41]} 32. Bxe6 {[%emt 0:03:50]} fxe6 {[%emt 0:00:39]} 33. Rd6 {[%emt 0:01:25]} Kh8 {[%emt 0:00:30]} 34. Rcd1 {[%emt 0:00:43]} Qf4 {[%emt 0:00:24]} 35. Qc2 {[%emt 0:00:21]} c5 {[%emt 0:00:29]} 36. Rxe6 {[%emt 0:00:27]} Qf7 {[%emt 0:00:28]} 37. Red6 {[%emt 0:00:24]} Qe7 {[%emt 0:00:22]} 38. Qd2 {[%emt 0:00:15]} Rf6 {[%emt 0:00:43]} 39. Re1 {[%emt 0:01:19]} Qf7 {[%emt 0:00:35]} 40. Re8+ {[%emt 0:00:00]} Rxe8 {[%emt 0:00:00]} 41. dxe8=Q+ {[%emt 0:00:57]} 1-0

[Event "WYCC 2018 G18"]
[Site "Halkidiki"]
[Date "2018.10.26"]
[Round "7"]
[White "Kiolbasa, Oliwia"]
[Black "Redondo Benavente, Ana"]
[Result "1-0"]
[ECO "B47"]
[WhiteElo "2254"]
[BlackElo "2055"]
[Annotator "NA"]
[PlyCount "109"]
[EventDate "2018.10.20"]
[EventType "swiss"]
[EventCountry "GRE"]
[SourceTitle "playchess.com"]
[Source "ChessBase"]
[SourceQuality "1"]
[TimeControl "40/5400+30:1800+30"]

1. e4 {[%emt 0:00:00]} c5 {[%emt 0:00:00]} 2. Nf3 {[%emt 0:00:00]} e6 {[%emt 0:00:00]} 3. d4 {[%emt 0:00:00]} cxd4 {[%emt 0:00:04]} 4. Nxd4 {[%emt 0:00:03]} Nc6 {[%emt 0:00:13]} 5. Nc3 {[%emt 0:00:37]} Qc7 {[%emt 0:00:40]} 6. Be2 {[%emt 0:01:52]} Nf6 {[%emt 0:01:42]} 7. O-O {[%emt 0:02:00]} Be7 {[%emt 0:00:35]} 8. Be3 {[%emt 0:02:54]} O-O {[%emt 0:00:30]} 9. Kh1 {[%emt 0:05:17]} a6 {[%emt 0:08:29]} 10. f4 {[%emt 0:02:35]} d6 {[%emt 0:00:06]} 11. a4 {[%emt 0:00:08]} Rd8 {[%emt 0:00:44]} 12. Qe1 {[%emt 0:08:37]} Nxd4 {[%emt 0:10:44]} 13. Bxd4 {[%emt 0:00:16]} e5 {[%emt 0:05:19]} 14. fxe5 {[%emt 0:04:39]} dxe5 {[%emt 0:00:35]} 15. Be3 {[%emt 0:00:12]} b6 {[%emt 0:16:32]} 16. Qg3 {[%emt 0:19:27]} Bb7 {[%emt 0:03:30]} 17. Bd3 {[%emt 0:01:33]} Rd7 {[%emt 0:10:07]} 18. Rf5 {[%emt 0:02:40]} g6 {[%emt 0:03:34]} 19. Raf1 {[%emt 0:03:06]} Qd8 {[%emt 0:04:10]} 20. R5f3 {[%emt 0:15:59]} h5 {[%emt 0:04:44]} 21. Bc4 {[%emt 0:03:40]} Kg7 {[%emt 0:05:49]} 22. Qg5 {[%emt 0:04:31]} Qh8 {[%emt 0:06:51]} 23. Rxf6 {[%emt 0:01:41]} Bxf6 {[%emt 0:00:24]} 24. Qxf6+ {[%emt 0:08:47]} Kh7 {[%emt 0:00:07]} 25. Qxh8+ {[%emt 0:00:05]} Kxh8 {[%emt 0:01:52]} 26. Rxf7 {[%emt 0:00:35]} Rxf7 {[%emt 0:03:10]} 27. Bxf7 {[%emt 0:00:01]} Kg7 {[%emt 0:00:31]} 28. Bc4 {[%emt 0:01:39]} b5 {[%emt 0:04:04]} 29. axb5 {[%emt 0:00:10]} axb5 {[%emt 0:00:01]} 30. Bxb5 {[%emt 0:00:32]} Ra1+ {[%emt 0:00:01]} 31. Bg1 {[%emt 0:00:11]} g5 {[%emt 0:00:06]} 32. h3 {[%emt 0:04:33]} g4 {[%emt 0:00:41]} 33. hxg4 {[%emt 0:00:06]} hxg4 {[%emt 0:00:02]} 34. g3 {[%emt 0:00:09]} Ba6 {[%emt 0:01:04]} 35. Bxa6 {[%emt 0:01:21]} Rxa6 {[%emt 0:00:02]} 36. Kg2 {[%emt 0:00:23]} Rc6 {[%emt 0:01:19]} 37. Kf1 {[%emt 0:00:51]} Kf7 {[%emt 0:00:07]} 38. Ke2 {[%emt 0:00:08]} Ke6 {[%emt 0:00:09]} 39. Bf2 {[%emt 0:01:10]} Rc8 {[%emt 0:00:20]} 40. Be1 {[%emt 0:00:00]} Kd6 {[%emt 0:00:00]} 41. Nb5+ {[%emt 0:01:52]} Kc5 {[%emt 0:02:17]} 42. Nc3 {[%emt 0:00:34]} Rh8 {[%emt 0:01:34]} 43. Bf2+ {[%emt 0:03:33]} Kc6 {[%emt 0:01:33]} 44. Nd5 {[%emt 0:00:23]} Rh1 {[%emt 0:00:20]} 45. Ne3 {[%emt 0:00:37]} Rb1 {[%emt 0:00:40]} 46. b3 {[%emt 0:00:11]} Rc1 {[%emt 0:00:34]} 47. Kd2 {[%emt 0:00:13]} Rh1 {[%emt 0:00:11]} 48. Nxg4 {[%emt 0:00:10]} Kd6 {[%emt 0:00:06]} 49. Ne3 {[%emt 0:00:42]} Rh2 {[%emt 0:00:06]} 50. Ke2 {[%emt 0:00:05]} Ke6 {[%emt 0:00:20]} 51. c4 {[%emt 0:01:26]} Rh8 {[%emt 0:00:09]} 52. b4 {[%emt 0:00:09]} Kd6 {[%emt 0:00:26]} 53. Nd5 {[%emt 0:00:32]} Rh2 {[%emt 0:02:33]} 54. b5 {[%emt 0:00:37]} Rxf2+ {[%emt 0:00:08]} 55. Kxf2 {[%emt 0:00:06] Kxd5} 1-0

[Event "WYCC 2018 G18"]
[Site "Halkidiki"]
[Date "2018.10.26"]
[Round "7"]
[White "Antolak, Julia"]
[Black "Manova, Ivana"]
[Result "1-0"]
[ECO "C89"]
[WhiteElo "2240"]
[BlackElo "1951"]
[Annotator "NA"]
[PlyCount "109"]
[EventDate "2018.10.20"]
[EventType "swiss"]
[EventCountry "GRE"]
[SourceTitle "playchess.com"]
[Source "ChessBase"]
[SourceQuality "1"]
[TimeControl "40/5400+30:1800+30"]

1. e4 {[%emt 0:00:00]} e5 {[%emt 0:00:00]} 2. Nf3 {[%emt 0:00:00]} Nc6 {[%emt 0:00:00]} 3. Bb5 {[%emt 0:00:00]} a6 {[%emt 0:00:00]} 4. Ba4 {[%emt 0:00:00]} Nf6 $11 {[%emt 0:00:21] LiveBook: 55528 Games} 5. O-O {[%emt 0:00:02]} Be7 {[%emt 0:00:26]} 6. Re1 {[%emt 0:00:06]} b5 {[%emt 0:00:19]} 7. Bb3 {[%emt 0:00:27]} O-O {[%emt 0:00:18]} 8. c3 {[%emt 0:00:04]} d5 {[%emt 0:00:50]} 9. exd5 {[%emt 0:00:06]} Nxd5 {[%emt 0:00:08]} 10. Nxe5 {[%emt 0:00:32]} Nxe5 11. Rxe5 {[%emt 0:00:04]} c6 {[%emt 0:00:22]} 12. d3 {[%emt 0:00:10]} Bd6 {[%emt 0:01:00]} 13. Re1 {[%emt 0:00:15]} Qh4 {[%emt 0:01:32]} 14. g3 {[%emt 0:00:34]} Qh3 {[%emt 0:02:25]} 15. Re4 {[%emt 0:00:41]} Nf6 {[%emt 0:16:12]} 16. Rh4 {[%emt 0:00:32]} Qf5 {[%emt 0:00:38]} 17. Nd2 {[%emt 0:02:40]} g5 {[%emt 0:08:47]} 18. Rh6 {[%emt 0:00:44]} Ng4 {[%emt 0:01:57]} 19. Ne4 {[%emt 0:00:16]} Be7 {[%emt 0:02:51]} 20. Rh5 {[%emt 0:20:11]} Qg6 {[%emt 0:05:06]} 21. Rxg5 {[%emt 0:04:29]} Bxg5 {[%emt 0:00:20]} 22. Bxg5 {[%emt 0:03:45]} Bf5 {[%emt 0:03:38]} 23. Bf4 {[%emt 0:10:36]} Rad8 {[%emt 0:19:40]} 24. Qf3 {[%emt 0:10:06]} Nf6 {[%emt 0:07:21]} 25. Nxf6+ {[%emt 0:14:02]} Qxf6 {[%emt 0:00:02]} 26. d4 {[%emt 0:00:32]} Qg6 {[%emt 0:04:12]} 27. Re1 {[%emt 0:08:59]} Rfe8 {[%emt 0:00:38]} 28. Be5 {[%emt 0:02:48]} h6 {[%emt 0:05:07]} 29. h4 {[%emt 0:02:31]} h5 {[%emt 0:06:41]} 30. Qf4 {[%emt 0:04:51]} Kh7 {[%emt 0:01:22]} 31. Rc1 {[%emt 0:01:57]} f6 {[%emt 0:02:46]} 32. Bf7 {[%emt 0:01:19]} Qxf7 {[%emt 0:02:51]} 33. Qxf5+ {[%emt 0:00:04]} Kg7 {[%emt 0:00:09]} 34. Qg5+ {[%emt 0:00:15]} Kh7 {[%emt 0:02:30]} 35. Qxf6 {[%emt 0:01:53]} Qxf6 {[%emt 0:00:35]} 36. Bxf6 {[%emt 0:00:06]} Rd5 {[%emt 0:00:52]} 37. Be5 {[%emt 0:01:00]} Kg6 {[%emt 0:00:57]} 38. Kg2 {[%emt 0:01:42]} c5 {[%emt 0:00:40]} 39. f3 {[%emt 0:02:11]} Kf5 {[%emt 0:02:58]} 40. Kh3 {[%emt 0:00:00]} Rexe5 {[%emt 0:00:00]} 41. dxe5 {[%emt 0:02:48]} Rd2 {[%emt 0:02:47]} 42. Re1 {[%emt 0:06:47]} Ke6 {[%emt 0:00:12]} 43. g4 {[%emt 0:01:00]} hxg4+ {[%emt 0:06:12]} 44. fxg4 {[%emt 0:00:45]} Rxb2 {[%emt 0:01:21]} 45. h5 {[%emt 0:00:34]} Rd2 {[%emt 0:01:10]} 46. h6 {[%emt 0:01:44]} Rd8 {[%emt 0:01:00]} 47. Kh4 {[%emt 0:01:56]} b4 {[%emt 0:01:37]} 48. cxb4 {[%emt 0:00:14]} cxb4 {[%emt 0:00:04]} 49. Kh5 {[%emt 0:00:58]} a5 {[%emt 0:04:42]} 50. g5 {[%emt 0:01:05]} Kf5 {[%emt 0:02:38]} 51. g6 {[%emt 0:01:26]} Rd2 {[%emt 0:01:23]} 52. Rf1+ {[%emt 0:00:07]} Kxe5 {[%emt 0:00:15]} 53. g7 {[%emt 0:00:15]} Rxa2 {[%emt 0:00:43]} 54. g8=Q {[%emt 0:00:29]} Rh2+ {[%emt 0:00:09]} 55. Kg6 {[%emt 0:00:03] Kd5} 1-0

[Event "WYCC 2018 G18"]
[Site "Halkidiki"]
[Date "2018.10.26"]
[Round "7"]
[White "Dimitrova, Aleksandra"]
[Black "Arpita, Mukherjee"]
[Result "1/2-1/2"]
[ECO "B90"]
[WhiteElo "2228"]
[BlackElo "2147"]
[Annotator "NA"]
[PlyCount "77"]
[EventDate "2018.10.20"]
[EventType "swiss"]
[EventCountry "GRE"]
[SourceTitle "playchess.com"]
[Source "ChessBase"]
[SourceQuality "1"]
[TimeControl "40/5400+30:1800+30"]

1. e4 {[%emt 0:00:00]} c5 {[%emt 0:00:00]} 2. Nf3 {[%emt 0:00:00]} d6 {[%emt 0:00:00]} 3. d4 {[%emt 0:00:00]} cxd4 {[%emt 0:00:06]} 4. Nxd4 {[%emt 0:00:00]} Nf6 {[%emt 0:00:10]} 5. Nc3 {[%emt 0:00:00]} a6 {[%emt 0:00:04]} 6. h4 {[%emt 0:00:00]} e5 {[%emt 0:00:07]} 7. Nb3 {[%emt 0:00:00]} Be6 {[%emt 0:00:19]} 8. f4 {[%emt 0:00:08]} exf4 {[%emt 0:00:22]} 9. Bxf4 {[%emt 0:00:04]} Nc6 {[%emt 0:00:14]} 10. Qd2 {[%emt 0:00:05]} d5 {[%emt 0:00:17]} 11. O-O-O {[%emt 0:00:14]} Bb4 {[%emt 0:00:21]} 12. Bg5 {[%emt 0:00:10]} Nxe4 {[%emt 0:00:31]} 13. Qe3 {[%emt 0:01:33]} Nxg5 {[%emt 0:01:05]} 14. Nxd5 {[%emt 0:00:16]} Bd6 {[%emt 0:00:22]} 15. Nb6 {[%emt 0:00:56]} Ne4 {[%emt 0:00:15]} 16. Qxe4 {[%emt 0:00:58]} Qxb6 {[%emt 0:01:51]} 17. Rxd6 {[%emt 0:00:15]} Qc7 {[%emt 0:04:47]} 18. Rd1 {[%emt 0:03:14]} Qe7 $11 {[%emt 0:08:01]} 19. Re1 {[%emt 0:19:25]} O-O {[%emt 0:12:28]} 20. Bd3 {[%emt 0:04:18]} g6 {[%emt 0:00:13]} 21. Kb1 {[%emt 0:09:36]} Bxb3 {[%emt 0:07:56]} 22. Qxe7 {[%emt 0:02:10]} Nxe7 {[%emt 0:00:10]} 23. axb3 {[%emt 0:00:31]} Nc6 {[%emt 0:05:56]} 24. c3 {[%emt 0:04:39]} Rad8 {[%emt 0:06:49]} 25. Kc2 {[%emt 0:01:07]} Rc8 {[%emt 0:00:44]} 26. Kb1 {[%emt 0:05:38]} Rcd8 {[%emt 0:06:18]} 27. Re3 {[%emt 0:04:05]} Rfe8 {[%emt 0:04:43]} 28. Rhe1 {[%emt 0:01:04]} Rxe3 {[%emt 0:00:07]} 29. Rxe3 {[%emt 0:00:02]} Kg7 {[%emt 0:00:08]} 30. Kc2 {[%emt 0:03:01]} Rc8 {[%emt 0:11:12]} 31. Kd2 {[%emt 0:01:05]} Rd8 {[%emt 0:00:09]} 32. b4 {[%emt 0:04:46]} f5 {[%emt 0:00:47]} 33. Kc2 {[%emt 0:04:41]} Kf6 {[%emt 0:00:28]} 34. b5 {[%emt 0:09:50]} axb5 {[%emt 0:00:10]} 35. Bxb5 {[%emt 0:00:04]} Ne5 {[%emt 0:00:07]} 36. g3 {[%emt 0:07:11]} h6 {[%emt 0:00:42]} 37. Re1 {[%emt 0:05:19]} g5 {[%emt 0:00:48]} 38. hxg5+ {[%emt 0:01:44]} hxg5 {[%emt 0:00:02]} 39. Rh1 {[%emt 0:03:52]} 1/2-1/2

[Event "WYCC 2018 G18"]
[Site "Halkidiki"]
[Date "2018.10.26"]
[Round "7"]
[White "Martynkova, Olena"]
[Black "Koehler, Inken"]
[Result "1-0"]
[ECO "B40"]
[WhiteElo "2188"]
[BlackElo "1934"]
[Annotator "NA"]
[PlyCount "71"]
[EventDate "2018.10.20"]
[EventType "swiss"]
[EventCountry "GRE"]
[SourceTitle "playchess.com"]
[Source "ChessBase"]
[SourceQuality "1"]
[TimeControl "40/5400+30:1800+30"]

1. e4 {[%emt 0:00:00]} c5 {[%emt 0:00:00]} 2. Nf3 {[%emt 0:00:00]} e6 {[%emt 0:00:00]} 3. d3 {[%emt 0:02:03]} Nf6 {[%emt 0:01:17]} 4. g3 {[%emt 0:01:58]} Nc6 {[%emt 0:01:29]} 5. Bg2 {[%emt 0:00:41]} d5 {[%emt 0:01:57]} 6. Nbd2 {[%emt 0:00:59]} dxe4 {[%emt 0:03:08]} 7. dxe4 {[%emt 0:00:34]} e5 {[%emt 0:00:36]} 8. O-O {[%emt 0:03:42]} Be7 {[%emt 0:01:33]} 9. c3 {[%emt 0:04:17]} O-O {[%emt 0:02:01]} 10. Qc2 {[%emt 0:05:02]} Qc7 {[%emt 0:05:19]} 11. Nc4 {[%emt 0:04:04]} Rd8 {[%emt 0:09:20]} 12. Ne3 {[%emt 0:04:38]} Bf8 {[%emt 0:02:12]} 13. Nf5 {[%emt 0:21:52]} g6 {[%emt 0:14:44]} 14. Bg5 {[%emt 0:11:31]} Be7 {[%emt 0:05:56]} 15. Nxe7+ {[%emt 0:02:16]} Qxe7 {[%emt 0:00:08]} 16. Nh4 {[%emt 0:08:12]} Rd6 {[%emt 0:11:35]} 17. f4 {[%emt 0:10:18]} h6 {[%emt 0:12:56]} 18. Bxh6 {[%emt 0:04:27]} Ng4 {[%emt 0:01:26]} 19. Bg5 {[%emt 0:00:06]} Qe8 {[%emt 0:02:44]} 20. f5 {[%emt 0:01:29]} f6 {[%emt 0:02:22]} 21. Bd2 {[%emt 0:02:07]} g5 {[%emt 0:00:41]} 22. Ng6 {[%emt 0:02:34]} b6 {[%emt 0:01:37]} 23. Rfd1 {[%emt 0:04:15]} Ba6 {[%emt 0:01:12]} 24. Bxg5 {[%emt 0:00:48]} Rad8 {[%emt 0:04:35]} 25. Rxd6 {[%emt 0:00:06]} Rxd6 {[%emt 0:00:09]} 26. Rd1 {[%emt 0:00:22]} Qd7 {[%emt 0:01:54]} 27. Rxd6 {[%emt 0:00:06]} Qxd6 {[%emt 0:00:06]} 28. Qd2 {[%emt 0:00:14]} Qc7 {[%emt 0:01:41]} 29. h3 {[%emt 0:03:14]} fxg5 {[%emt 0:00:32]} 30. Qxg5 {[%emt 0:00:21]} Qg7 {[%emt 0:01:02]} 31. Qxg4 {[%emt 0:00:53]} Kf7 {[%emt 0:02:00]} 32. Nh8+ {[%emt 0:00:54]} Kg8 {[%emt 0:00:40]} 33. Ng6 {[%emt 0:01:20]} Kf7 {[%emt 0:00:08]} 34. Qd1 {[%emt 0:00:19]} Ke8 {[%emt 0:02:49]} 35. Qd6 {[%emt 0:00:21]} Qd7 {[%emt 0:00:15]} 36. Qf8# {[%emt 0:00:30]} 1-0